{"text_format":"3","workbook":"xlsx","n_sheets":3,"sheets":["Kilometražo žurnalas","Žurnalo duomenys","Skaičiavimai"],"not_rendered":{"charts":1,"defined_names":17},"read":"whole","date_system":"1900"}

{"sheet":"Kilometražo žurnalas","index":0,"n_rows":29,"n_cols":5,"rows_kept":29,"merged":[[0,1,1,4]]}
[null,"KILOMETRAŽO ŽURNALAS"]
{"$rows_empty":9}
[null,null,"KOMPENSUOJAMA",null,"IŠ VISO"]
[null,null,"MYLIOS",null,"KOMPENSACIJA"]
[]
[]
[]
[]
[null,null,"2012-05-01",null,"2012-05-10"]
[]
[null,null,"LAIKOTARPIS",null,"LAIKOTARPIS"]
[null,null,"PRADŽIA",null,"PABAIGA"]
[]
[]
[]
[]
[]
[null,null,54,null,{"v":9800,"d":"9,800"}]
[]
[null,null,"KOMPENSACIJA",null,"ANKSTESNI DEGALAI"]
[null,null,"¢/Mile",null,"RIDOS SKAITIKLIS"]

{"sheet":"Žurnalo duomenys","index":1,"n_rows":19,"n_cols":15,"rows_kept":19,"merged":[[0,1,1,4]]}
[null,"KILOMETRAŽO ŽURNALAS"]
[{"$nulls":14}," "]
[]
[]
[null,"DATA","VEIKLA","1 RIDOS SKAITIKLIS","VIETA","2 RIDOS SKAITIKLIS","PASKIRTIS","KOMPENSUOTI","GALONAI","IŠLAIDOS","MYLIOS","MPG","¢/MILE","PASTABOS"]
[null,"2012-05-01","Kelionė",{"v":10123,"d":"10,123"},"„V“ pavidalo – pagrindinė gatvė",{"v":10130,"d":"10,130"},null,null,15.56,{"v":64.11,"d":"$64.11"},{"$f":"Mylios","v":7},{"$f":"IF(OR(LEN(Duomenys[[#This Row],[2 RIDOS SKAITIKLIS]]),Duomenys[[#This Row],[1 RIDOS SKAITIKLIS]]=\"\"),\"\",IFERROR(Duomenys[[#This Row],[MYLIOS]]/Duomenys[[#This Row],[GALONAI]],\"\"))","v":""},{"$f":"IF(Duomenys[[#This Row],[MPG]]=\"\",\"\",100*Duomenys[[#This Row],[IŠLAIDOS]]/Duomenys[[#This Row],[MYLIOS]])","v":""}]
[null,"2012-05-01","Kelionė",{"v":10130,"d":"10,130"},"Biuras",{"v":10200,"d":"10,200"},"Cherry Street","Taip",null,"",{"$f":"Mylios","v":70},{"$f":"IF(OR(LEN(Duomenys[[#This Row],[2 RIDOS SKAITIKLIS]]),Duomenys[[#This Row],[1 RIDOS SKAITIKLIS]]=\"\"),\"\",IFERROR(Duomenys[[#This Row],[MYLIOS]]/Duomenys[[#This Row],[GALONAI]],\"\"))","v":""},{"$f":"IF(Duomenys[[#This Row],[MPG]]=\"\",\"\",100*Duomenys[[#This Row],[IŠLAIDOS]]/Duomenys[[#This Row],[MYLIOS]])","v":""}]
[null,"2012-05-01","Kelionė",{"v":10200,"d":"10,200"},"Smithfields",{"v":10285,"d":"10,285"},"Biuras","Taip",null,"",{"$f":"Mylios","v":85},{"$f":"IF(OR(LEN(Duomenys[[#This Row],[2 RIDOS SKAITIKLIS]]),Duomenys[[#This Row],[1 RIDOS SKAITIKLIS]]=\"\"),\"\",IFERROR(Duomenys[[#This Row],[MYLIOS]]/Duomenys[[#This Row],[GALONAI]],\"\"))","v":""},{"$f":"IF(Duomenys[[#This Row],[MPG]]=\"\",\"\",100*Duomenys[[#This Row],[IŠLAIDOS]]/Duomenys[[#This Row],[MYLIOS]])","v":""}]
[null,"2012-05-02","Kelionė",{"v":10285,"d":"10,285"},"Biuras",{"v":10450,"d":"10,450"},"Colo Vineyard","Taip",null,"",{"$f":"Mylios","v":165},{"$f":"IF(OR(LEN(Duomenys[[#This Row],[2 RIDOS SKAITIKLIS]]),Duomenys[[#This Row],[1 RIDOS SKAITIKLIS]]=\"\"),\"\",IFERROR(Duomenys[[#This Row],[MYLIOS]]/Duomenys[[#This Row],[GALONAI]],\"\"))","v":""},{"$f":"IF(Duomenys[[#This Row],[MPG]]=\"\",\"\",100*Duomenys[[#This Row],[IŠLAIDOS]]/Duomenys[[#This Row],[MYLIOS]])","v":""}]
[null,"2012-05-02","Degalai",{"v":10450,"d":"10,450"},"Shell",{"$nulls":3},{"v":11.2,"d":"11.20"},{"v":55.42,"d":"$55.42"},{"$f":"Mylios","v":650},{"$f":"IF(OR(LEN(Duomenys[[#This Row],[2 RIDOS SKAITIKLIS]]),Duomenys[[#This Row],[1 RIDOS SKAITIKLIS]]=\"\"),\"\",IFERROR(Duomenys[[#This Row],[MYLIOS]]/Duomenys[[#This Row],[GALONAI]],\"\"))","v":{"v":58.03571428571429,"d":"58.0"}},{"$f":"IF(Duomenys[[#This Row],[MPG]]=\"\",\"\",100*Duomenys[[#This Row],[IŠLAIDOS]]/Duomenys[[#This Row],[MYLIOS]])","v":{"v":8.526153846153846,"d":"8.5"}}]
[null,"2012-05-02","Kelionė",{"v":10500,"d":"10,500"},"Colo Vineyard",{"v":10518,"d":"10,518"},"Biuras","Taip",null,"",{"$f":"Mylios","v":18},{"$f":"IF(OR(LEN(Duomenys[[#This Row],[2 RIDOS SKAITIKLIS]]),Duomenys[[#This Row],[1 RIDOS SKAITIKLIS]]=\"\"),\"\",IFERROR(Duomenys[[#This Row],[MYLIOS]]/Duomenys[[#This Row],[GALONAI]],\"\"))","v":""},{"$f":"IF(Duomenys[[#This Row],[MPG]]=\"\",\"\",100*Duomenys[[#This Row],[IŠLAIDOS]]/Duomenys[[#This Row],[MYLIOS]])","v":""}]
[null,"2012-05-03","Kelionė",{"v":10518,"d":"10,518"},"Biuras",{"v":10745,"d":"10,745"},"Biuras","Taip",null,"",{"$f":"Mylios","v":227},{"$f":"IF(OR(LEN(Duomenys[[#This Row],[2 RIDOS SKAITIKLIS]]),Duomenys[[#This Row],[1 RIDOS SKAITIKLIS]]=\"\"),\"\",IFERROR(Duomenys[[#This Row],[MYLIOS]]/Duomenys[[#This Row],[GALONAI]],\"\"))","v":""},{"$f":"IF(Duomenys[[#This Row],[MPG]]=\"\",\"\",100*Duomenys[[#This Row],[IŠLAIDOS]]/Duomenys[[#This Row],[MYLIOS]])","v":""}]
[null,"2012-05-04","Degalai",{"v":10745,"d":"10,745"},"„V“ pavidalo – pagrindinė gatvė",{"$nulls":3},{"v":16.6,"d":"16.60"},{"v":69.24,"d":"$69.24"},{"$f":"Mylios","v":295},{"$f":"IF(OR(LEN(Duomenys[[#This Row],[2 RIDOS SKAITIKLIS]]),Duomenys[[#This Row],[1 RIDOS SKAITIKLIS]]=\"\"),\"\",IFERROR(Duomenys[[#This Row],[MYLIOS]]/Duomenys[[#This Row],[GALONAI]],\"\"))","v":{"v":17.771084337349397,"d":"17.8"}},{"$f":"IF(Duomenys[[#This Row],[MPG]]=\"\",\"\",100*Duomenys[[#This Row],[IŠLAIDOS]]/Duomenys[[#This Row],[MYLIOS]])","v":{"v":23.471186440677965,"d":"23.5"}}]
[null,"2012-05-04","Kelionė",{"v":10745,"d":"10,745"},"Biuras",{"v":10800,"d":"10,800"},"Porterville","Taip",null,"",{"$f":"Mylios","v":55},{"$f":"IF(OR(LEN(Duomenys[[#This Row],[2 RIDOS SKAITIKLIS]]),Duomenys[[#This Row],[1 RIDOS SKAITIKLIS]]=\"\"),\"\",IFERROR(Duomenys[[#This Row],[MYLIOS]]/Duomenys[[#This Row],[GALONAI]],\"\"))","v":""},{"$f":"IF(Duomenys[[#This Row],[MPG]]=\"\",\"\",100*Duomenys[[#This Row],[IŠLAIDOS]]/Duomenys[[#This Row],[MYLIOS]])","v":""}]
[null,"2012-05-04","Kelionė",{"v":10800,"d":"10,800"},"Porterville",{"v":10875,"d":"10,875"},"Biuras","Taip",null,"",{"$f":"Mylios","v":75},{"$f":"IF(OR(LEN(Duomenys[[#This Row],[2 RIDOS SKAITIKLIS]]),Duomenys[[#This Row],[1 RIDOS SKAITIKLIS]]=\"\"),\"\",IFERROR(Duomenys[[#This Row],[MYLIOS]]/Duomenys[[#This Row],[GALONAI]],\"\"))","v":""},{"$f":"IF(Duomenys[[#This Row],[MPG]]=\"\",\"\",100*Duomenys[[#This Row],[IŠLAIDOS]]/Duomenys[[#This Row],[MYLIOS]])","v":""}]
[null,"2012-05-07","Kelionė",{"v":10875,"d":"10,875"},"Biuras",{"v":10921,"d":"10,921"},"Cherry Street","Taip",null,"",{"$f":"Mylios","v":46},{"$f":"IF(OR(LEN(Duomenys[[#This Row],[2 RIDOS SKAITIKLIS]]),Duomenys[[#This Row],[1 RIDOS SKAITIKLIS]]=\"\"),\"\",IFERROR(Duomenys[[#This Row],[MYLIOS]]/Duomenys[[#This Row],[GALONAI]],\"\"))","v":""},{"$f":"IF(Duomenys[[#This Row],[MPG]]=\"\",\"\",100*Duomenys[[#This Row],[IŠLAIDOS]]/Duomenys[[#This Row],[MYLIOS]])","v":""}]
[null,"2012-05-07","Kelionė",{"v":10921,"d":"10,921"},"Smithfields",{"v":10969,"d":"10,969"},"Biuras","Taip",null,"",{"$f":"Mylios","v":48},{"$f":"IF(OR(LEN(Duomenys[[#This Row],[2 RIDOS SKAITIKLIS]]),Duomenys[[#This Row],[1 RIDOS SKAITIKLIS]]=\"\"),\"\",IFERROR(Duomenys[[#This Row],[MYLIOS]]/Duomenys[[#This Row],[GALONAI]],\"\"))","v":""},{"$f":"IF(Duomenys[[#This Row],[MPG]]=\"\",\"\",100*Duomenys[[#This Row],[IŠLAIDOS]]/Duomenys[[#This Row],[MYLIOS]])","v":""}]
[null,"2012-05-09","Kelionė",{"v":10969,"d":"10,969"},"Biuras",{"v":11000,"d":"11,000"},"Riverside","Taip",null,"",{"$f":"Mylios","v":31},{"$f":"IF(OR(LEN(Duomenys[[#This Row],[2 RIDOS SKAITIKLIS]]),Duomenys[[#This Row],[1 RIDOS SKAITIKLIS]]=\"\"),\"\",IFERROR(Duomenys[[#This Row],[MYLIOS]]/Duomenys[[#This Row],[GALONAI]],\"\"))","v":""},{"$f":"IF(Duomenys[[#This Row],[MPG]]=\"\",\"\",100*Duomenys[[#This Row],[IŠLAIDOS]]/Duomenys[[#This Row],[MYLIOS]])","v":""}]
[null,"2012-05-09","Kelionė",{"v":11000,"d":"11,000"},"Riverside",{"v":11100,"d":"11,100"},"Namai","Ne",null,"",{"$f":"Mylios","v":100},{"$f":"IF(OR(LEN(Duomenys[[#This Row],[2 RIDOS SKAITIKLIS]]),Duomenys[[#This Row],[1 RIDOS SKAITIKLIS]]=\"\"),\"\",IFERROR(Duomenys[[#This Row],[MYLIOS]]/Duomenys[[#This Row],[GALONAI]],\"\"))","v":""},{"$f":"IF(Duomenys[[#This Row],[MPG]]=\"\",\"\",100*Duomenys[[#This Row],[IŠLAIDOS]]/Duomenys[[#This Row],[MYLIOS]])","v":""}]

{"sheet":"Skaičiavimai","index":2,"n_rows":69,"n_cols":13,"rows_kept":69,"hidden":true}
["*** Šis lapas turi būti paslėptas ***"]
[]
[]
[]
[]
[{"$nulls":8},{"$f":"OFFSET(I9,,antraAšis=\"Degalai Išlaidos\")","v":"¢/Mile"}]
[{"$nulls":12},2]
[{"$nulls":7},"Kelionė","Degalai","Degalai",null,"Antra ašis:  ",{"$f":"REPT(\"MPG\",M7=1)&REPT(\"Degalai Išlaidos\",M7=2)","v":"Degalai Išlaidos"}]
[{"$nulls":7},"Nuvažiuotas atstumas","MPG","¢/Mile"]
[null,null,"Kompensuojamos mylios:  ",{"$f":"SUMIFS(Duomenys[MYLIOS],Duomenys[KOMPENSUOTI],\"Taip\",Duomenys[DATA],\">=\"&periodpPradžia,Duomenys[DATA],\"<=\"&periodoPabaiga)","v":820},null,1,{"$f":"periodpPradžia","v":"2012-05-01"},{"$f":"SUMIFS(Duomenys[MYLIOS],Duomenys[DATA],G10,Duomenys[VEIKLA],$H$8)","v":162},{"$f":"IFERROR(AVERAGEIFS(Duomenys[MPG],Duomenys[DATA],G10,Duomenys[VEIKLA],$I$8),NA())","v":{"$error":"#N/A"}},{"$f":"IFERROR(AVERAGEIFS(Duomenys[¢/MILE],Duomenys[DATA],G10,Duomenys[VEIKLA],$J$8),NA())","v":{"$error":"#N/A"}}]
[null,null,"Bendroji kompensuojama suma:  ",{"$f":"D10*KompensacijaUžMylią/100","v":{"v":442.8,"d":"442.80 Lt"}},null,2,{"$f":"G10+1","v":"2012-05-02"},{"$f":"SUMIFS(Duomenys[MYLIOS],Duomenys[DATA],G11,Duomenys[VEIKLA],$H$8)","v":183},{"$f":"IFERROR(AVERAGEIFS(Duomenys[MPG],Duomenys[DATA],G11,Duomenys[VEIKLA],$I$8),NA())","v":{"v":58.03571428571429,"d":"58.0"}},{"$f":"IFERROR(AVERAGEIFS(Duomenys[¢/MILE],Duomenys[DATA],G11,Duomenys[VEIKLA],$J$8),NA())","v":{"v":8.526153846153846,"d":"8.5"}}]
[{"$nulls":5},3,"2012-05-03",{"$f":"SUMIFS(Duomenys[MYLIOS],Duomenys[DATA],G12,Duomenys[VEIKLA],$H$8)","v":227},{"$f":"IFERROR(AVERAGEIFS(Duomenys[MPG],Duomenys[DATA],G12,Duomenys[VEIKLA],$I$8),NA())","v":{"$error":"#N/A"}},{"$f":"IFERROR(AVERAGEIFS(Duomenys[¢/MILE],Duomenys[DATA],G12,Duomenys[VEIKLA],$J$8),NA())","v":{"$error":"#N/A"}}]
[{"$nulls":5},4,"2012-05-04",{"$f":"SUMIFS(Duomenys[MYLIOS],Duomenys[DATA],G13,Duomenys[VEIKLA],$H$8)","v":130},{"$f":"IFERROR(AVERAGEIFS(Duomenys[MPG],Duomenys[DATA],G13,Duomenys[VEIKLA],$I$8),NA())","v":{"v":17.771084337349397,"d":"17.8"}},{"$f":"IFERROR(AVERAGEIFS(Duomenys[¢/MILE],Duomenys[DATA],G13,Duomenys[VEIKLA],$J$8),NA())","v":{"v":23.471186440677965,"d":"23.5"}}]
[{"$nulls":5},5,"2012-05-05",{"$f":"SUMIFS(Duomenys[MYLIOS],Duomenys[DATA],G14,Duomenys[VEIKLA],$H$8)","v":0},{"$f":"IFERROR(AVERAGEIFS(Duomenys[MPG],Duomenys[DATA],G14,Duomenys[VEIKLA],$I$8),NA())","v":{"$error":"#N/A"}},{"$f":"IFERROR(AVERAGEIFS(Duomenys[¢/MILE],Duomenys[DATA],G14,Duomenys[VEIKLA],$J$8),NA())","v":{"$error":"#N/A"}}]
[{"$nulls":5},6,"2012-05-06",{"$f":"SUMIFS(Duomenys[MYLIOS],Duomenys[DATA],G15,Duomenys[VEIKLA],$H$8)","v":0},{"$f":"IFERROR(AVERAGEIFS(Duomenys[MPG],Duomenys[DATA],G15,Duomenys[VEIKLA],$I$8),NA())","v":{"$error":"#N/A"}},{"$f":"IFERROR(AVERAGEIFS(Duomenys[¢/MILE],Duomenys[DATA],G15,Duomenys[VEIKLA],$J$8),NA())","v":{"$error":"#N/A"}}]
[{"$nulls":5},7,"2012-05-07",{"$f":"SUMIFS(Duomenys[MYLIOS],Duomenys[DATA],G16,Duomenys[VEIKLA],$H$8)","v":94},{"$f":"IFERROR(AVERAGEIFS(Duomenys[MPG],Duomenys[DATA],G16,Duomenys[VEIKLA],$I$8),NA())","v":{"$error":"#N/A"}},{"$f":"IFERROR(AVERAGEIFS(Duomenys[¢/MILE],Duomenys[DATA],G16,Duomenys[VEIKLA],$J$8),NA())","v":{"$error":"#N/A"}}]
[{"$nulls":5},8,"2012-05-08",{"$f":"SUMIFS(Duomenys[MYLIOS],Duomenys[DATA],G17,Duomenys[VEIKLA],$H$8)","v":0},{"$f":"IFERROR(AVERAGEIFS(Duomenys[MPG],Duomenys[DATA],G17,Duomenys[VEIKLA],$I$8),NA())","v":{"$error":"#N/A"}},{"$f":"IFERROR(AVERAGEIFS(Duomenys[¢/MILE],Duomenys[DATA],G17,Duomenys[VEIKLA],$J$8),NA())","v":{"$error":"#N/A"}}]
[{"$nulls":5},9,"2012-05-09",{"$f":"SUMIFS(Duomenys[MYLIOS],Duomenys[DATA],G18,Duomenys[VEIKLA],$H$8)","v":131},{"$f":"IFERROR(AVERAGEIFS(Duomenys[MPG],Duomenys[DATA],G18,Duomenys[VEIKLA],$I$8),NA())","v":{"$error":"#N/A"}},{"$f":"IFERROR(AVERAGEIFS(Duomenys[¢/MILE],Duomenys[DATA],G18,Duomenys[VEIKLA],$J$8),NA())","v":{"$error":"#N/A"}}]
[{"$nulls":5},10,"2012-05-10",{"$f":"SUMIFS(Duomenys[MYLIOS],Duomenys[DATA],G19,Duomenys[VEIKLA],$H$8)","v":0},{"$f":"IFERROR(AVERAGEIFS(Duomenys[MPG],Duomenys[DATA],G19,Duomenys[VEIKLA],$I$8),NA())","v":{"$error":"#N/A"}},{"$f":"IFERROR(AVERAGEIFS(Duomenys[¢/MILE],Duomenys[DATA],G19,Duomenys[VEIKLA],$J$8),NA())","v":{"$error":"#N/A"}}]
[{"$nulls":5},11,"2012-05-11",{"$f":"SUMIFS(Duomenys[MYLIOS],Duomenys[DATA],G20,Duomenys[VEIKLA],$H$8)","v":0},{"$f":"IFERROR(AVERAGEIFS(Duomenys[MPG],Duomenys[DATA],G20,Duomenys[VEIKLA],$I$8),NA())","v":{"$error":"#N/A"}},{"$f":"IFERROR(AVERAGEIFS(Duomenys[¢/MILE],Duomenys[DATA],G20,Duomenys[VEIKLA],$J$8),NA())","v":{"$error":"#N/A"}}]
[{"$nulls":5},12,"2012-05-12",{"$f":"SUMIFS(Duomenys[MYLIOS],Duomenys[DATA],G21,Duomenys[VEIKLA],$H$8)","v":0},{"$f":"IFERROR(AVERAGEIFS(Duomenys[MPG],Duomenys[DATA],G21,Duomenys[VEIKLA],$I$8),NA())","v":{"$error":"#N/A"}},{"$f":"IFERROR(AVERAGEIFS(Duomenys[¢/MILE],Duomenys[DATA],G21,Duomenys[VEIKLA],$J$8),NA())","v":{"$error":"#N/A"}}]
[{"$nulls":5},13,"2012-05-13",{"$f":"SUMIFS(Duomenys[MYLIOS],Duomenys[DATA],G22,Duomenys[VEIKLA],$H$8)","v":0},{"$f":"IFERROR(AVERAGEIFS(Duomenys[MPG],Duomenys[DATA],G22,Duomenys[VEIKLA],$I$8),NA())","v":{"$error":"#N/A"}},{"$f":"IFERROR(AVERAGEIFS(Duomenys[¢/MILE],Duomenys[DATA],G22,Duomenys[VEIKLA],$J$8),NA())","v":{"$error":"#N/A"}}]
[{"$nulls":5},14,"2012-05-14",{"$f":"SUMIFS(Duomenys[MYLIOS],Duomenys[DATA],G23,Duomenys[VEIKLA],$H$8)","v":0},{"$f":"IFERROR(AVERAGEIFS(Duomenys[MPG],Duomenys[DATA],G23,Duomenys[VEIKLA],$I$8),NA())","v":{"$error":"#N/A"}},{"$f":"IFERROR(AVERAGEIFS(Duomenys[¢/MILE],Duomenys[DATA],G23,Duomenys[VEIKLA],$J$8),NA())","v":{"$error":"#N/A"}}]
[{"$nulls":5},15,"2012-05-15",{"$f":"SUMIFS(Duomenys[MYLIOS],Duomenys[DATA],G24,Duomenys[VEIKLA],$H$8)","v":0},{"$f":"IFERROR(AVERAGEIFS(Duomenys[MPG],Duomenys[DATA],G24,Duomenys[VEIKLA],$I$8),NA())","v":{"$error":"#N/A"}},{"$f":"IFERROR(AVERAGEIFS(Duomenys[¢/MILE],Duomenys[DATA],G24,Duomenys[VEIKLA],$J$8),NA())","v":{"$error":"#N/A"}}]
[{"$nulls":5},16,"2012-05-16",{"$f":"SUMIFS(Duomenys[MYLIOS],Duomenys[DATA],G25,Duomenys[VEIKLA],$H$8)","v":0},{"$f":"IFERROR(AVERAGEIFS(Duomenys[MPG],Duomenys[DATA],G25,Duomenys[VEIKLA],$I$8),NA())","v":{"$error":"#N/A"}},{"$f":"IFERROR(AVERAGEIFS(Duomenys[¢/MILE],Duomenys[DATA],G25,Duomenys[VEIKLA],$J$8),NA())","v":{"$error":"#N/A"}}]
[{"$nulls":5},17,"2012-05-17",{"$f":"SUMIFS(Duomenys[MYLIOS],Duomenys[DATA],G26,Duomenys[VEIKLA],$H$8)","v":0},{"$f":"IFERROR(AVERAGEIFS(Duomenys[MPG],Duomenys[DATA],G26,Duomenys[VEIKLA],$I$8),NA())","v":{"$error":"#N/A"}},{"$f":"IFERROR(AVERAGEIFS(Duomenys[¢/MILE],Duomenys[DATA],G26,Duomenys[VEIKLA],$J$8),NA())","v":{"$error":"#N/A"}}]
[{"$nulls":5},18,"2012-05-18",{"$f":"SUMIFS(Duomenys[MYLIOS],Duomenys[DATA],G27,Duomenys[VEIKLA],$H$8)","v":0},{"$f":"IFERROR(AVERAGEIFS(Duomenys[MPG],Duomenys[DATA],G27,Duomenys[VEIKLA],$I$8),NA())","v":{"$error":"#N/A"}},{"$f":"IFERROR(AVERAGEIFS(Duomenys[¢/MILE],Duomenys[DATA],G27,Duomenys[VEIKLA],$J$8),NA())","v":{"$error":"#N/A"}}]
[{"$nulls":5},19,"2012-05-19",{"$f":"SUMIFS(Duomenys[MYLIOS],Duomenys[DATA],G28,Duomenys[VEIKLA],$H$8)","v":0},{"$f":"IFERROR(AVERAGEIFS(Duomenys[MPG],Duomenys[DATA],G28,Duomenys[VEIKLA],$I$8),NA())","v":{"$error":"#N/A"}},{"$f":"IFERROR(AVERAGEIFS(Duomenys[¢/MILE],Duomenys[DATA],G28,Duomenys[VEIKLA],$J$8),NA())","v":{"$error":"#N/A"}}]
[{"$nulls":5},20,"2012-05-20",{"$f":"SUMIFS(Duomenys[MYLIOS],Duomenys[DATA],G29,Duomenys[VEIKLA],$H$8)","v":0},{"$f":"IFERROR(AVERAGEIFS(Duomenys[MPG],Duomenys[DATA],G29,Duomenys[VEIKLA],$I$8),NA())","v":{"$error":"#N/A"}},{"$f":"IFERROR(AVERAGEIFS(Duomenys[¢/MILE],Duomenys[DATA],G29,Duomenys[VEIKLA],$J$8),NA())","v":{"$error":"#N/A"}}]
[{"$nulls":5},21,"2012-05-21",{"$f":"SUMIFS(Duomenys[MYLIOS],Duomenys[DATA],G30,Duomenys[VEIKLA],$H$8)","v":0},{"$f":"IFERROR(AVERAGEIFS(Duomenys[MPG],Duomenys[DATA],G30,Duomenys[VEIKLA],$I$8),NA())","v":{"$error":"#N/A"}},{"$f":"IFERROR(AVERAGEIFS(Duomenys[¢/MILE],Duomenys[DATA],G30,Duomenys[VEIKLA],$J$8),NA())","v":{"$error":"#N/A"}}]
[{"$nulls":5},22,"2012-05-22",{"$f":"SUMIFS(Duomenys[MYLIOS],Duomenys[DATA],G31,Duomenys[VEIKLA],$H$8)","v":0},{"$f":"IFERROR(AVERAGEIFS(Duomenys[MPG],Duomenys[DATA],G31,Duomenys[VEIKLA],$I$8),NA())","v":{"$error":"#N/A"}},{"$f":"IFERROR(AVERAGEIFS(Duomenys[¢/MILE],Duomenys[DATA],G31,Duomenys[VEIKLA],$J$8),NA())","v":{"$error":"#N/A"}}]
[{"$nulls":5},23,"2012-05-23",{"$f":"SUMIFS(Duomenys[MYLIOS],Duomenys[DATA],G32,Duomenys[VEIKLA],$H$8)","v":0},{"$f":"IFERROR(AVERAGEIFS(Duomenys[MPG],Duomenys[DATA],G32,Duomenys[VEIKLA],$I$8),NA())","v":{"$error":"#N/A"}},{"$f":"IFERROR(AVERAGEIFS(Duomenys[¢/MILE],Duomenys[DATA],G32,Duomenys[VEIKLA],$J$8),NA())","v":{"$error":"#N/A"}}]
[{"$nulls":5},24,"2012-05-24",{"$f":"SUMIFS(Duomenys[MYLIOS],Duomenys[DATA],G33,Duomenys[VEIKLA],$H$8)","v":0},{"$f":"IFERROR(AVERAGEIFS(Duomenys[MPG],Duomenys[DATA],G33,Duomenys[VEIKLA],$I$8),NA())","v":{"$error":"#N/A"}},{"$f":"IFERROR(AVERAGEIFS(Duomenys[¢/MILE],Duomenys[DATA],G33,Duomenys[VEIKLA],$J$8),NA())","v":{"$error":"#N/A"}}]
[{"$nulls":5},25,"2012-05-25",{"$f":"SUMIFS(Duomenys[MYLIOS],Duomenys[DATA],G34,Duomenys[VEIKLA],$H$8)","v":0},{"$f":"IFERROR(AVERAGEIFS(Duomenys[MPG],Duomenys[DATA],G34,Duomenys[VEIKLA],$I$8),NA())","v":{"$error":"#N/A"}},{"$f":"IFERROR(AVERAGEIFS(Duomenys[¢/MILE],Duomenys[DATA],G34,Duomenys[VEIKLA],$J$8),NA())","v":{"$error":"#N/A"}}]
[{"$nulls":5},26,"2012-05-26",{"$f":"SUMIFS(Duomenys[MYLIOS],Duomenys[DATA],G35,Duomenys[VEIKLA],$H$8)","v":0},{"$f":"IFERROR(AVERAGEIFS(Duomenys[MPG],Duomenys[DATA],G35,Duomenys[VEIKLA],$I$8),NA())","v":{"$error":"#N/A"}},{"$f":"IFERROR(AVERAGEIFS(Duomenys[¢/MILE],Duomenys[DATA],G35,Duomenys[VEIKLA],$J$8),NA())","v":{"$error":"#N/A"}}]
[{"$nulls":5},27,"2012-05-27",{"$f":"SUMIFS(Duomenys[MYLIOS],Duomenys[DATA],G36,Duomenys[VEIKLA],$H$8)","v":0},{"$f":"IFERROR(AVERAGEIFS(Duomenys[MPG],Duomenys[DATA],G36,Duomenys[VEIKLA],$I$8),NA())","v":{"$error":"#N/A"}},{"$f":"IFERROR(AVERAGEIFS(Duomenys[¢/MILE],Duomenys[DATA],G36,Duomenys[VEIKLA],$J$8),NA())","v":{"$error":"#N/A"}}]
[{"$nulls":5},28,"2012-05-28",{"$f":"SUMIFS(Duomenys[MYLIOS],Duomenys[DATA],G37,Duomenys[VEIKLA],$H$8)","v":0},{"$f":"IFERROR(AVERAGEIFS(Duomenys[MPG],Duomenys[DATA],G37,Duomenys[VEIKLA],$I$8),NA())","v":{"$error":"#N/A"}},{"$f":"IFERROR(AVERAGEIFS(Duomenys[¢/MILE],Duomenys[DATA],G37,Duomenys[VEIKLA],$J$8),NA())","v":{"$error":"#N/A"}}]
[{"$nulls":5},29,"2012-05-29",{"$f":"SUMIFS(Duomenys[MYLIOS],Duomenys[DATA],G38,Duomenys[VEIKLA],$H$8)","v":0},{"$f":"IFERROR(AVERAGEIFS(Duomenys[MPG],Duomenys[DATA],G38,Duomenys[VEIKLA],$I$8),NA())","v":{"$error":"#N/A"}},{"$f":"IFERROR(AVERAGEIFS(Duomenys[¢/MILE],Duomenys[DATA],G38,Duomenys[VEIKLA],$J$8),NA())","v":{"$error":"#N/A"}}]
[{"$nulls":5},30,"2012-05-30",{"$f":"SUMIFS(Duomenys[MYLIOS],Duomenys[DATA],G39,Duomenys[VEIKLA],$H$8)","v":0},{"$f":"IFERROR(AVERAGEIFS(Duomenys[MPG],Duomenys[DATA],G39,Duomenys[VEIKLA],$I$8),NA())","v":{"$error":"#N/A"}},{"$f":"IFERROR(AVERAGEIFS(Duomenys[¢/MILE],Duomenys[DATA],G39,Duomenys[VEIKLA],$J$8),NA())","v":{"$error":"#N/A"}}]
[{"$nulls":5},31,"2012-05-31",{"$f":"SUMIFS(Duomenys[MYLIOS],Duomenys[DATA],G40,Duomenys[VEIKLA],$H$8)","v":0},{"$f":"IFERROR(AVERAGEIFS(Duomenys[MPG],Duomenys[DATA],G40,Duomenys[VEIKLA],$I$8),NA())","v":{"$error":"#N/A"}},{"$f":"IFERROR(AVERAGEIFS(Duomenys[¢/MILE],Duomenys[DATA],G40,Duomenys[VEIKLA],$J$8),NA())","v":{"$error":"#N/A"}}]
[{"$nulls":5},32,"2012-06-01",{"$f":"SUMIFS(Duomenys[MYLIOS],Duomenys[DATA],G41,Duomenys[VEIKLA],$H$8)","v":0},{"$f":"IFERROR(AVERAGEIFS(Duomenys[MPG],Duomenys[DATA],G41,Duomenys[VEIKLA],$I$8),NA())","v":{"$error":"#N/A"}},{"$f":"IFERROR(AVERAGEIFS(Duomenys[¢/MILE],Duomenys[DATA],G41,Duomenys[VEIKLA],$J$8),NA())","v":{"$error":"#N/A"}}]
[{"$nulls":5},33,"2012-06-02",{"$f":"SUMIFS(Duomenys[MYLIOS],Duomenys[DATA],G42,Duomenys[VEIKLA],$H$8)","v":0},{"$f":"IFERROR(AVERAGEIFS(Duomenys[MPG],Duomenys[DATA],G42,Duomenys[VEIKLA],$I$8),NA())","v":{"$error":"#N/A"}},{"$f":"IFERROR(AVERAGEIFS(Duomenys[¢/MILE],Duomenys[DATA],G42,Duomenys[VEIKLA],$J$8),NA())","v":{"$error":"#N/A"}}]
[{"$nulls":5},34,{"$f":"G42+1","v":"2012-06-03"},{"$f":"SUMIFS(Duomenys[MYLIOS],Duomenys[DATA],G43,Duomenys[VEIKLA],$H$8)","v":0},{"$f":"IFERROR(AVERAGEIFS(Duomenys[MPG],Duomenys[DATA],G43,Duomenys[VEIKLA],$I$8),NA())","v":{"$error":"#N/A"}},{"$f":"IFERROR(AVERAGEIFS(Duomenys[¢/MILE],Duomenys[DATA],G43,Duomenys[VEIKLA],$J$8),NA())","v":{"$error":"#N/A"}}]
[{"$nulls":5},35,"2012-06-04",{"$f":"SUMIFS(Duomenys[MYLIOS],Duomenys[DATA],G44,Duomenys[VEIKLA],$H$8)","v":0},{"$f":"IFERROR(AVERAGEIFS(Duomenys[MPG],Duomenys[DATA],G44,Duomenys[VEIKLA],$I$8),NA())","v":{"$error":"#N/A"}},{"$f":"IFERROR(AVERAGEIFS(Duomenys[¢/MILE],Duomenys[DATA],G44,Duomenys[VEIKLA],$J$8),NA())","v":{"$error":"#N/A"}}]
[{"$nulls":5},36,"2012-06-05",{"$f":"SUMIFS(Duomenys[MYLIOS],Duomenys[DATA],G45,Duomenys[VEIKLA],$H$8)","v":0},{"$f":"IFERROR(AVERAGEIFS(Duomenys[MPG],Duomenys[DATA],G45,Duomenys[VEIKLA],$I$8),NA())","v":{"$error":"#N/A"}},{"$f":"IFERROR(AVERAGEIFS(Duomenys[¢/MILE],Duomenys[DATA],G45,Duomenys[VEIKLA],$J$8),NA())","v":{"$error":"#N/A"}}]
[{"$nulls":5},37,"2012-06-06",{"$f":"SUMIFS(Duomenys[MYLIOS],Duomenys[DATA],G46,Duomenys[VEIKLA],$H$8)","v":0},{"$f":"IFERROR(AVERAGEIFS(Duomenys[MPG],Duomenys[DATA],G46,Duomenys[VEIKLA],$I$8),NA())","v":{"$error":"#N/A"}},{"$f":"IFERROR(AVERAGEIFS(Duomenys[¢/MILE],Duomenys[DATA],G46,Duomenys[VEIKLA],$J$8),NA())","v":{"$error":"#N/A"}}]
[{"$nulls":5},38,"2012-06-07",{"$f":"SUMIFS(Duomenys[MYLIOS],Duomenys[DATA],G47,Duomenys[VEIKLA],$H$8)","v":0},{"$f":"IFERROR(AVERAGEIFS(Duomenys[MPG],Duomenys[DATA],G47,Duomenys[VEIKLA],$I$8),NA())","v":{"$error":"#N/A"}},{"$f":"IFERROR(AVERAGEIFS(Duomenys[¢/MILE],Duomenys[DATA],G47,Duomenys[VEIKLA],$J$8),NA())","v":{"$error":"#N/A"}}]
[{"$nulls":5},39,"2012-06-08",{"$f":"SUMIFS(Duomenys[MYLIOS],Duomenys[DATA],G48,Duomenys[VEIKLA],$H$8)","v":0},{"$f":"IFERROR(AVERAGEIFS(Duomenys[MPG],Duomenys[DATA],G48,Duomenys[VEIKLA],$I$8),NA())","v":{"$error":"#N/A"}},{"$f":"IFERROR(AVERAGEIFS(Duomenys[¢/MILE],Duomenys[DATA],G48,Duomenys[VEIKLA],$J$8),NA())","v":{"$error":"#N/A"}}]
[{"$nulls":5},40,"2012-06-09",{"$f":"SUMIFS(Duomenys[MYLIOS],Duomenys[DATA],G49,Duomenys[VEIKLA],$H$8)","v":0},{"$f":"IFERROR(AVERAGEIFS(Duomenys[MPG],Duomenys[DATA],G49,Duomenys[VEIKLA],$I$8),NA())","v":{"$error":"#N/A"}},{"$f":"IFERROR(AVERAGEIFS(Duomenys[¢/MILE],Duomenys[DATA],G49,Duomenys[VEIKLA],$J$8),NA())","v":{"$error":"#N/A"}}]
[{"$nulls":5},41,"2012-06-10",{"$f":"SUMIFS(Duomenys[MYLIOS],Duomenys[DATA],G50,Duomenys[VEIKLA],$H$8)","v":0},{"$f":"IFERROR(AVERAGEIFS(Duomenys[MPG],Duomenys[DATA],G50,Duomenys[VEIKLA],$I$8),NA())","v":{"$error":"#N/A"}},{"$f":"IFERROR(AVERAGEIFS(Duomenys[¢/MILE],Duomenys[DATA],G50,Duomenys[VEIKLA],$J$8),NA())","v":{"$error":"#N/A"}}]
[{"$nulls":5},42,"2012-06-11",{"$f":"SUMIFS(Duomenys[MYLIOS],Duomenys[DATA],G51,Duomenys[VEIKLA],$H$8)","v":0},{"$f":"IFERROR(AVERAGEIFS(Duomenys[MPG],Duomenys[DATA],G51,Duomenys[VEIKLA],$I$8),NA())","v":{"$error":"#N/A"}},{"$f":"IFERROR(AVERAGEIFS(Duomenys[¢/MILE],Duomenys[DATA],G51,Duomenys[VEIKLA],$J$8),NA())","v":{"$error":"#N/A"}}]
[{"$nulls":5},43,"2012-06-12",{"$f":"SUMIFS(Duomenys[MYLIOS],Duomenys[DATA],G52,Duomenys[VEIKLA],$H$8)","v":0},{"$f":"IFERROR(AVERAGEIFS(Duomenys[MPG],Duomenys[DATA],G52,Duomenys[VEIKLA],$I$8),NA())","v":{"$error":"#N/A"}},{"$f":"IFERROR(AVERAGEIFS(Duomenys[¢/MILE],Duomenys[DATA],G52,Duomenys[VEIKLA],$J$8),NA())","v":{"$error":"#N/A"}}]
[{"$nulls":5},44,"2012-06-13",{"$f":"SUMIFS(Duomenys[MYLIOS],Duomenys[DATA],G53,Duomenys[VEIKLA],$H$8)","v":0},{"$f":"IFERROR(AVERAGEIFS(Duomenys[MPG],Duomenys[DATA],G53,Duomenys[VEIKLA],$I$8),NA())","v":{"$error":"#N/A"}},{"$f":"IFERROR(AVERAGEIFS(Duomenys[¢/MILE],Duomenys[DATA],G53,Duomenys[VEIKLA],$J$8),NA())","v":{"$error":"#N/A"}}]
[{"$nulls":5},45,"2012-06-14",{"$f":"SUMIFS(Duomenys[MYLIOS],Duomenys[DATA],G54,Duomenys[VEIKLA],$H$8)","v":0},{"$f":"IFERROR(AVERAGEIFS(Duomenys[MPG],Duomenys[DATA],G54,Duomenys[VEIKLA],$I$8),NA())","v":{"$error":"#N/A"}},{"$f":"IFERROR(AVERAGEIFS(Duomenys[¢/MILE],Duomenys[DATA],G54,Duomenys[VEIKLA],$J$8),NA())","v":{"$error":"#N/A"}}]
[{"$nulls":5},46,"2012-06-15",{"$f":"SUMIFS(Duomenys[MYLIOS],Duomenys[DATA],G55,Duomenys[VEIKLA],$H$8)","v":0},{"$f":"IFERROR(AVERAGEIFS(Duomenys[MPG],Duomenys[DATA],G55,Duomenys[VEIKLA],$I$8),NA())","v":{"$error":"#N/A"}},{"$f":"IFERROR(AVERAGEIFS(Duomenys[¢/MILE],Duomenys[DATA],G55,Duomenys[VEIKLA],$J$8),NA())","v":{"$error":"#N/A"}}]
[{"$nulls":5},47,"2012-06-16",{"$f":"SUMIFS(Duomenys[MYLIOS],Duomenys[DATA],G56,Duomenys[VEIKLA],$H$8)","v":0},{"$f":"IFERROR(AVERAGEIFS(Duomenys[MPG],Duomenys[DATA],G56,Duomenys[VEIKLA],$I$8),NA())","v":{"$error":"#N/A"}},{"$f":"IFERROR(AVERAGEIFS(Duomenys[¢/MILE],Duomenys[DATA],G56,Duomenys[VEIKLA],$J$8),NA())","v":{"$error":"#N/A"}}]
[{"$nulls":5},48,"2012-06-17",{"$f":"SUMIFS(Duomenys[MYLIOS],Duomenys[DATA],G57,Duomenys[VEIKLA],$H$8)","v":0},{"$f":"IFERROR(AVERAGEIFS(Duomenys[MPG],Duomenys[DATA],G57,Duomenys[VEIKLA],$I$8),NA())","v":{"$error":"#N/A"}},{"$f":"IFERROR(AVERAGEIFS(Duomenys[¢/MILE],Duomenys[DATA],G57,Duomenys[VEIKLA],$J$8),NA())","v":{"$error":"#N/A"}}]
[{"$nulls":5},49,"2012-06-18",{"$f":"SUMIFS(Duomenys[MYLIOS],Duomenys[DATA],G58,Duomenys[VEIKLA],$H$8)","v":0},{"$f":"IFERROR(AVERAGEIFS(Duomenys[MPG],Duomenys[DATA],G58,Duomenys[VEIKLA],$I$8),NA())","v":{"$error":"#N/A"}},{"$f":"IFERROR(AVERAGEIFS(Duomenys[¢/MILE],Duomenys[DATA],G58,Duomenys[VEIKLA],$J$8),NA())","v":{"$error":"#N/A"}}]
[{"$nulls":5},50,"2012-06-19",{"$f":"SUMIFS(Duomenys[MYLIOS],Duomenys[DATA],G59,Duomenys[VEIKLA],$H$8)","v":0},{"$f":"IFERROR(AVERAGEIFS(Duomenys[MPG],Duomenys[DATA],G59,Duomenys[VEIKLA],$I$8),NA())","v":{"$error":"#N/A"}},{"$f":"IFERROR(AVERAGEIFS(Duomenys[¢/MILE],Duomenys[DATA],G59,Duomenys[VEIKLA],$J$8),NA())","v":{"$error":"#N/A"}}]
[{"$nulls":5},51,"2012-06-20",{"$f":"SUMIFS(Duomenys[MYLIOS],Duomenys[DATA],G60,Duomenys[VEIKLA],$H$8)","v":0},{"$f":"IFERROR(AVERAGEIFS(Duomenys[MPG],Duomenys[DATA],G60,Duomenys[VEIKLA],$I$8),NA())","v":{"$error":"#N/A"}},{"$f":"IFERROR(AVERAGEIFS(Duomenys[¢/MILE],Duomenys[DATA],G60,Duomenys[VEIKLA],$J$8),NA())","v":{"$error":"#N/A"}}]
[{"$nulls":5},52,"2012-06-21",{"$f":"SUMIFS(Duomenys[MYLIOS],Duomenys[DATA],G61,Duomenys[VEIKLA],$H$8)","v":0},{"$f":"IFERROR(AVERAGEIFS(Duomenys[MPG],Duomenys[DATA],G61,Duomenys[VEIKLA],$I$8),NA())","v":{"$error":"#N/A"}},{"$f":"IFERROR(AVERAGEIFS(Duomenys[¢/MILE],Duomenys[DATA],G61,Duomenys[VEIKLA],$J$8),NA())","v":{"$error":"#N/A"}}]
[{"$nulls":5},53,"2012-06-22",{"$f":"SUMIFS(Duomenys[MYLIOS],Duomenys[DATA],G62,Duomenys[VEIKLA],$H$8)","v":0},{"$f":"IFERROR(AVERAGEIFS(Duomenys[MPG],Duomenys[DATA],G62,Duomenys[VEIKLA],$I$8),NA())","v":{"$error":"#N/A"}},{"$f":"IFERROR(AVERAGEIFS(Duomenys[¢/MILE],Duomenys[DATA],G62,Duomenys[VEIKLA],$J$8),NA())","v":{"$error":"#N/A"}}]
[{"$nulls":5},54,"2012-06-23",{"$f":"SUMIFS(Duomenys[MYLIOS],Duomenys[DATA],G63,Duomenys[VEIKLA],$H$8)","v":0},{"$f":"IFERROR(AVERAGEIFS(Duomenys[MPG],Duomenys[DATA],G63,Duomenys[VEIKLA],$I$8),NA())","v":{"$error":"#N/A"}},{"$f":"IFERROR(AVERAGEIFS(Duomenys[¢/MILE],Duomenys[DATA],G63,Duomenys[VEIKLA],$J$8),NA())","v":{"$error":"#N/A"}}]
[{"$nulls":5},55,"2012-06-24",{"$f":"SUMIFS(Duomenys[MYLIOS],Duomenys[DATA],G64,Duomenys[VEIKLA],$H$8)","v":0},{"$f":"IFERROR(AVERAGEIFS(Duomenys[MPG],Duomenys[DATA],G64,Duomenys[VEIKLA],$I$8),NA())","v":{"$error":"#N/A"}},{"$f":"IFERROR(AVERAGEIFS(Duomenys[¢/MILE],Duomenys[DATA],G64,Duomenys[VEIKLA],$J$8),NA())","v":{"$error":"#N/A"}}]
[{"$nulls":5},56,"2012-06-25",{"$f":"SUMIFS(Duomenys[MYLIOS],Duomenys[DATA],G65,Duomenys[VEIKLA],$H$8)","v":0},{"$f":"IFERROR(AVERAGEIFS(Duomenys[MPG],Duomenys[DATA],G65,Duomenys[VEIKLA],$I$8),NA())","v":{"$error":"#N/A"}},{"$f":"IFERROR(AVERAGEIFS(Duomenys[¢/MILE],Duomenys[DATA],G65,Duomenys[VEIKLA],$J$8),NA())","v":{"$error":"#N/A"}}]
[{"$nulls":5},57,"2012-06-26",{"$f":"SUMIFS(Duomenys[MYLIOS],Duomenys[DATA],G66,Duomenys[VEIKLA],$H$8)","v":0},{"$f":"IFERROR(AVERAGEIFS(Duomenys[MPG],Duomenys[DATA],G66,Duomenys[VEIKLA],$I$8),NA())","v":{"$error":"#N/A"}},{"$f":"IFERROR(AVERAGEIFS(Duomenys[¢/MILE],Duomenys[DATA],G66,Duomenys[VEIKLA],$J$8),NA())","v":{"$error":"#N/A"}}]
[{"$nulls":5},58,"2012-06-27",{"$f":"SUMIFS(Duomenys[MYLIOS],Duomenys[DATA],G67,Duomenys[VEIKLA],$H$8)","v":0},{"$f":"IFERROR(AVERAGEIFS(Duomenys[MPG],Duomenys[DATA],G67,Duomenys[VEIKLA],$I$8),NA())","v":{"$error":"#N/A"}},{"$f":"IFERROR(AVERAGEIFS(Duomenys[¢/MILE],Duomenys[DATA],G67,Duomenys[VEIKLA],$J$8),NA())","v":{"$error":"#N/A"}}]
[{"$nulls":5},59,"2012-06-28",{"$f":"SUMIFS(Duomenys[MYLIOS],Duomenys[DATA],G68,Duomenys[VEIKLA],$H$8)","v":0},{"$f":"IFERROR(AVERAGEIFS(Duomenys[MPG],Duomenys[DATA],G68,Duomenys[VEIKLA],$I$8),NA())","v":{"$error":"#N/A"}},{"$f":"IFERROR(AVERAGEIFS(Duomenys[¢/MILE],Duomenys[DATA],G68,Duomenys[VEIKLA],$J$8),NA())","v":{"$error":"#N/A"}}]
[{"$nulls":5},60,"2012-06-29",{"$f":"SUMIFS(Duomenys[MYLIOS],Duomenys[DATA],G69,Duomenys[VEIKLA],$H$8)","v":0},{"$f":"IFERROR(AVERAGEIFS(Duomenys[MPG],Duomenys[DATA],G69,Duomenys[VEIKLA],$I$8),NA())","v":{"$error":"#N/A"}},{"$f":"IFERROR(AVERAGEIFS(Duomenys[¢/MILE],Duomenys[DATA],G69,Duomenys[VEIKLA],$J$8),NA())","v":{"$error":"#N/A"}}]